bitfinex-derivatives/quotes_ETHF0:USTF0_20241017
["timestamp","ask_amount","ask_price","bid_price","bid_amount"]
[1729128676294,0.38234,2615.6,2615.5,0.4011]
[1729128676485,1.85304,2615.6,2615.5,0.4011]
[1729128677686,4.53304,2615.6,2615.5,0.78345]
[1729128677887,0.38236,2615.4,2615.3,1.16287]
[1729128678193,3.06236,2615.4,2615.2,0.38238]
[1729128678394,0.38239,2615.2,2615.1,0.8034]
[1729128678600,2.68,2615.2,2615.1,0.8034]
[1729128679284,2.68,2615.2,2615.1,0.421]
[1729128679481,2.68,2615.2,2615.1,0.80341]
[1729128679999,2.68,2615.4,2615.3,0.38238]
[1729128680197,3.727,2615.4,2615.3,0.38238]
[1729128680396,3.727,2615.4,2615.1,0.421]
[1729128680697,2.68,2615.4,2615.3,0.38238]
[1729128680996,3.727,2615.4,2615.3,0.38238]
[1729128681888,2.68,2615.4,2615.3,0.38238]
[1729128682085,3.728,2615.4,2615.3,0.38238]
[1729128683891,4.11036,2615.4,2615.3,0.38238]
[1729128684194,0.38238,2615.3,2615.2,0.38238]
[1729128684693,4.11037,2615.4,2615.3,0.38238]
[1729128684996,4.11037,2615.4,2615.1,0.421]
[1729128684997,0.38239,2615.2,2615.1,0.8034]
[1729128685787,3.728,2615.4,2615.1,0.421]
[1729128686186,0.38239,2615.3,2615.2,0.38239]
[1729128686796,3.728,2615.4,2615.0,0.4097]
[1729128686991,3.728,2615.4,2614.7,0.8175]
[1729128686992,5.8878,2615.2,2614.7,0.8175]
[1729128687196,3.06245,2614.8,2614.7,0.8175]
[1729128687396,3.06245,2614.8,2614.7,0.79747]
[1729128687397,4.11045,2614.8,2614.7,0.79747]
[1729128687702,3.06243,2615.0,2614.9,0.38244]
[1729128687900,4.11043,2615.0,2614.9,0.38244]
[1729128688102,3.2078,2615.2,2615.0,0.38242]
[1729128688103,3.5902,2615.2,2615.0,0.38242]
[1729128688307,1.048,2615.1,2615.0,0.38242]
[1729128688802,1.43041,2615.1,2615.0,0.38242]
[1729128689300,1.048,2615.1,2614.8,0.4068]
[1729128689489,3.06241,2615.1,2615.0,0.38242]
[1729128689705,4.11041,2615.1,2615.0,0.38242]
[1729128691193,3.728,2615.1,2615.0,0.38242]
[1729128691602,4.11041,2615.1,2615.0,0.38242]
[1729128692803,4.11041,2615.1,2614.7,0.415]
[1729128692804,0.38244,2614.9,2614.7,0.415]
[1729128693004,0.38247,2614.7,2614.6,3.2078]
[1729128693309,2.68,2614.8,2614.4,0.4176]
[1729128693505,0.38249,2614.6,2614.5,0.3825]
[1729128693703,0.3825,2614.5,2614.4,0.80011]
[1729128694023,0.3825,2614.5,2614.3,3.2078]
[1729128694024,3.728,2614.5,2614.3,0.38252]
[1729128694310,0.38252,2614.4,2614.2,0.38253]
[1729128694614,0.38252,2614.4,2614.3,0.38252]
[1729128694912,0.38252,2614.4,2614.0,4.0508]
[1729128695108,0.38253,2614.3,2614.1,0.38255]
[1729128695308,3.06254,2614.2,2614.0,4.43336]
[1729128695505,3.06254,2614.2,2614.1,0.38255]
[1729128695907,0.38255,2614.1,2614.0,4.43336]
[1729128696306,0.38255,2614.1,2614.0,0.843]
[1729128697219,3.06254,2614.2,2614.1,0.38255]
[1729128698517,3.06255,2614.2,2614.0,0.843]
[1729128698717,3.06255,2614.2,2614.1,0.38255]
[1729128700022,3.06255,2614.2,2614.0,0.843]
[1729128700023,0.38255,2614.1,2614.0,1.22556]
[1729128700207,0.38253,2614.3,2614.2,0.38254]
[1729128701115,4.2558,2614.5,2614.0,0.843]
[1729128701513,0.38254,2614.2,2614.1,0.38254]
[1729128701814,1.43053,2614.3,2614.2,0.38254]
[1729128702726,1.048,2614.3,2614.2,0.38254]
[1729128703416,1.048,2614.3,2614.0,4.0508]
[1729128703613,0.80135,2614.2,2614.1,0.38255]
[1729128703820,0.38255,2614.1,2614.0,4.43336]
[1729128704015,0.80135,2614.2,2614.1,0.38255]
[1729128704211,0.38255,2614.1,2614.0,4.43337]
[1729128704721,0.38255,2614.1,2614.0,3.6332]
[1729128705716,0.38255,2614.1,2613.8,0.7903]
[1729128705717,0.38258,2613.9,2613.8,1.1729]
[1729128705915,0.38258,2613.9,2613.8,0.7903]
[1729128706215,0.38254,2614.3,2614.1,0.38255]
[1729128706410,0.38254,2614.3,2613.9,3.2078]
[1729128706411,1.048,2614.3,2613.9,3.2078]
[1729128706616,1.048,2614.3,2613.9,3.59037]
[1729128706617,0.38257,2614.0,2613.9,3.59037]
[1729128706919,0.38257,2614.0,2613.9,3.2078]
[1729128707315,0.38257,2614.0,2613.9,3.59038]
[1729128707618,0.38257,2614.0,2613.9,3.2078]
[1729128707813,0.38257,2614.0,2613.9,3.59038]
[1729128708720,0.66443,2614.0,2613.9,3.2078]
[1729128708917,0.66443,2614.0,2613.9,3.59038]
[1729128711325,1.42956,2614.1,2614.0,0.38257]
[1729128711925,0.38257,2614.0,2613.9,3.2078]
[1729128712120,4.10956,2614.1,2614.0,0.38257]
[1729128712724,0.38257,2614.0,2613.9,3.59038]
[1729128713121,3.727,2614.1,2613.9,3.2078]
[1729128713426,1.42957,2614.1,2614.0,0.38257]
[1729128715632,0.3892,2614.2,2613.9,3.2078]
[1729128715833,0.66445,2614.1,2613.9,3.2078]
[1729128716138,0.66445,2614.1,2614.0,0.38257]
[1729128717935,1.047,2614.1,2614.0,0.38257]
[1729128718637,1.42955,2614.1,2614.0,0.38257]
[1729128719139,1.047,2614.1,2614.0,0.38257]
[1729128720040,1.42955,2614.1,2614.0,0.38257]
[1729128722341,0.38258,2614.0,2613.9,0.38257]
[1729128723641,7.31736,2614.1,2614.0,0.38257]
[1729128724241,0.38257,2614.0,2613.9,0.38257]
[1729128724844,6.9348,2614.1,2613.8,0.7903]
[1729128725038,0.38257,2614.0,2613.9,0.38258]
[1729128725943,4.10957,2614.1,2614.0,0.38257]
[1729128726639,3.727,2614.1,2613.8,1.78640008]
[1729128726836,3.727,2614.1,2614.0,0.38257]
[1729128726837,4.10957,2614.1,2614.0,0.38257]
[1729128727247,0.38258,2614.0,2613.9,0.38258]
[1729128727543,0.38258,2614.0,2613.9,0.38257]
[1729128728634,3.727,2614.1,2613.9,0.38257]
[1729128728838,0.38258,2614.0,2613.9,0.38257]
[1729128729036,4.10957,2614.1,2614.0,0.38257]
[1729128729244,4.10956,2614.1,2614.0,0.38257]
[1729128730342,3.727,2614.1,2613.8,1.78640008]
[1729128730543,4.10956,2614.1,2614.0,0.38257]
[1729128731346,3.727,2614.1,2613.8,1.78640008]
[1729128731545,0.38258,2614.0,2613.9,0.38257]
[1729128732050,0.38258,2613.9,2613.8,2.16899008]
[1729128732236,0.38258,2613.9,2613.8,2.6630451]
[1729128732439,3.06258,2613.9,2613.8,1.39470008]
[1729128732638,0.3826,2613.8,2613.7,0.99610008]
[1729128732843,0.38261,2613.7,2613.6,5.01126192]
[1729128733950,0.38261,2613.7,2613.6,6.27943747]
[1729128734351,0.38261,2613.7,2613.6,5.27818555]
[1729128734645,0.38261,2613.7,2613.6,6.2801301]
[1729128735349,0.38261,2613.7,2613.6,6.28046099]
[1729128735551,1.1924,2613.8,2613.7,0.38261]
[1729128735755,0.7813,2613.8,2613.7,1.38443955]
[1729128736950,0.3987,2613.8,2613.7,1.38443955]
[1729128737148,0.66342,2613.8,2613.7,1.00182955]
[1729128737354,0.66342,2613.8,2613.7,1.65224711]
[1729128737745,0.66342,2613.8,2613.7,3.14639723]
[1729128738153,1.04602,2613.8,2613.7,3.14639723]
[1729128738447,0.66342,2613.8,2613.7,3.14639723]
[1729128738646,0.6634,2613.8,2613.7,2.76378723]
[1729128738953,0.6634,2613.8,2613.7,3.14639723]
[1729128739450,1.046,2613.8,2613.7,1.65224711]
[1729128739641,0.58251152,2614.0,2613.7,1.26963711]
[1729128739845,0.04273358,2613.9,2613.8,3.15813863]
[1729128740253,0.42531358,2613.9,2613.8,1.653239]
[1729128740555,0.42531358,2613.9,2613.8,3.15813863]
[1729128740850,0.42531358,2613.9,2613.8,3.15399489]
[1729128741252,0.04273358,2613.9,2613.8,3.15399489]
[1729128741449,0.42531358,2613.9,2613.8,3.15399489]
[1729128741644,0.04273358,2613.9,2613.8,3.15399489]
[1729128741850,1.28273358,2613.9,2613.8,3.15399489]
[1729128742248,1.66531358,2613.9,2613.8,3.15399489]
[1729128743254,2.66858,2613.9,2613.8,3.15399489]
[1729128743654,0.66345,2613.9,2613.8,2.50649526]
[1729128743858,1.42856,2614.1,2613.9,0.38258]
[1729128744046,1.24,2614.0,2613.9,0.38258]
[1729128744356,1.24,2614.0,2613.9,4.18147397]
[1729128744649,1.24,2614.0,2613.9,6.18780235]
[1729128745455,1.24,2614.0,2613.9,6.18807161]
[1729128746450,1.24,2614.0,2613.9,6.18826965]
[1729128746647,2.286,2614.1,2614.0,0.38257]
[1729128746852,2.286,2614.1,2614.0,6.18815218]
[1729128747053,1.24,2614.1,2614.0,4.18173323]
[1729128748249,1.24,2614.1,2614.0,6.18821958]
[1729128749066,1.24,2614.1,2614.0,4.18173323]
[1729128749255,1.24,2614.1,2614.0,6.18829659]
[1729128749460,1.24,2614.1,2614.0,4.18173323]
[1729128750164,1.24,2614.1,2614.0,6.18943476]
[1729128750556,1.24,2614.1,2614.0,4.18263097]
[1729128752061,0.4112,2614.6,2614.0,10.11591117]
[1729128752265,0.38247,2614.8,2614.7,0.38246]
[1729128752566,0.38247,2614.8,2614.7,1.26633891]
[1729128752567,1.62245,2614.8,2614.7,1.26633891]
[1729128752757,12.49626239,2614.8,2614.6,1.50497519]
[1729128753065,0.38248,2614.6,2614.5,3.2078]
[1729128753372,1.62248,2614.6,2614.5,3.2078]
[1729128753564,11.44728,2614.6,2614.5,3.2078]
[1729128757662,11.0648,2614.6,2614.2,1.88750519]
[1729128757867,1.62253,2614.3,2614.2,1.88750519]
[1729128758066,1.62253,2614.3,2614.2,1.64846035]
[1729128758472,1.62253,2614.3,2614.2,3.15255242]
[1729128758765,1.62253,2614.3,2614.2,3.18052109]
[1729128759366,2.86253,2614.3,2614.2,3.18052109]
[1729128759565,2.86253,2614.3,2614.2,1.67635415]
[1729128759875,2.66853,2614.3,2614.2,1.67636355]
[1729128760169,2.66853,2614.3,2614.2,1.67638145]
[1729128760674,2.66853,2614.3,2614.2,3.18047219]
[1729128760870,2.286,2614.3,2614.2,3.15251219]
[1729128761062,3.90853,2614.3,2614.2,2.76997219]
[1729128761269,2.66853,2614.3,2614.2,3.15251219]
[1729128761571,2.66853,2614.3,2614.2,2.76997219]
[1729128761769,2.66853,2614.3,2614.2,3.15251219]
[1729128762069,1.046,2614.3,2614.2,3.15251219]
[1729128762267,1.24,2614.3,2614.2,1.26588145]
[1729128762469,1.24,2614.3,2614.2,3.65505504]
[1729128762966,1.62253,2614.3,2614.2,3.15234892]
[1729128765472,2.86253,2614.3,2614.2,2.76980892]
[1729128765670,3.27513,2614.3,2614.2,1.26588145]
[1729128765877,0.38254,2614.2,2614.1,1.50392747]
[1729128766174,0.38254,2614.2,2614.1,2.76955834]
[1729128768869,0.38254,2614.2,2614.1,2.76955245]
[1729128769482,1.42754,2614.3,2614.2,0.38253]
[1729128769772,1.24,2614.3,2614.2,3.15191812]
[1729128772574,1.62253,2614.3,2614.2,3.15191812]
[1729128773276,2.66753,2614.3,2614.2,3.15191812]
[1729128773776,2.66753,2614.3,2614.2,3.15174399]
[1729128774081,2.66753,2614.3,2614.2,3.15175399]
[1729128775677,1.62253,2614.3,2614.2,3.15175399]
[1729128776580,1.24,2614.3,2614.2,3.15175399]
[1729128776985,1.42752,2614.4,2614.2,2.76921399]
[1729128776986,0.38252,2614.4,2614.2,2.76921399]
[1729128777183,0.4061,2614.6,2614.3,3.16262972]
[1729128777392,0.38249,2614.6,2614.5,0.38249]
[1729128777581,0.38248,2614.7,2614.6,0.38247]
[1729128777889,1.42748,2614.7,2614.6,0.38247]
[1729128778387,1.42748,2614.7,2614.5,1.88625314]
[1729128778388,0.38248,2614.6,2614.5,1.88625314]
[1729128778578,0.38248,2614.6,2614.5,1.26513524]
[1729128778779,0.3825,2614.5,2614.4,0.8261]
[1729128779082,1.6225,2614.5,2614.4,2.09129796]
[1729128779385,1.6225,2614.5,2614.4,3.5950611]
[1729128779791,1.6225,2614.5,2614.4,3.9775711]
[1729128780493,1.24,2614.5,2614.4,2.09129796]
[1729128780685,1.24,2614.5,2614.4,3.97719021]
[1729128780880,1.24,2614.5,2614.4,2.47380796]
[1729128781586,1.24,2614.5,2614.4,2.47391826]
[1729128782683,1.24,2614.5,2614.4,4.48055185]
[1729128782993,1.24,2614.5,2614.4,2.47391826]
[1729128783288,1.24,2614.5,2614.4,3.97751459]
[1729128783494,1.24,2614.5,2614.4,2.47391826]
[1729128783983,2.48,2614.5,2614.3,1.89706083]
[1729128784185,3.26391,2614.4,2614.3,0.3935]
[1729128784385,3.67991,2614.4,2614.3,0.3935]
[1729128784687,2.43991,2614.4,2614.3,0.3935]
[1729128785188,0.38254,2614.2,2614.1,1.92516083]
[1729128785379,0.38254,2614.2,2614.1,2.76951743]
[1729128785380,3.90754,2614.2,2614.1,2.76951743]
[1729128785580,3.90754,2614.2,2613.9,1.50356083]
[1729128785581,13.3506,2614.2,2613.9,1.50356083]
[1729128785785,13.3506,2614.2,2613.6,2.4902502]
[1729128785786,1.24,2614.0,2613.7,1.50440335]
[1729128785989,1.6226,2613.8,2613.7,1.50440335]
[1729128786186,0.38261,2613.7,2613.6,2.34960335]
[1729128786486,0.38264,2613.5,2613.3,1.50440335]
[1729128786692,1.24,2613.4,2613.3,1.92600335]
[1729128786884,1.62266,2613.4,2613.3,1.68772586]
[1729128787083,1.62266,2613.4,2613.2,1.50440335]
[1729128787084,2.02867,2613.4,2613.1,2.31069335]
[1729128787285,1.62269,2613.2,2613.1,0.8242]
[1729128787582,1.62269,2613.2,2613.1,0.4006]
[1729128787777,3.07269,2613.2,2613.1,0.4006]
[1729128788382,2.69,2613.2,2613.1,0.4006]
[1729128789786,2.69,2613.2,2613.1,0.7833]
[1729128789985,3.47867,2613.4,2613.1,0.7833]
[1729128790185,2.69,2613.2,2613.1,0.7833]
[1729128790788,2.69,2613.2,2613.1,0.4006]
[1729128790987,3.07269,2613.2,2613.1,0.4006]
[1729128791188,2.69,2613.2,2613.1,0.4006]
[1729128791396,3.0727,2613.2,2613.0,3.2078]
[1729128791591,0.3827,2613.1,2613.0,3.2078]
[1729128792892,0.38276,2612.8,2612.6,4.00817]
[1729128793095,2.69,2612.7,2612.6,4.00817]
[1729128793288,2.69,2612.9,2612.8,0.38274]
[1729128793493,3.0727,2613.1,2613.0,0.38271]
[1729128793697,0.38272,2613.0,2612.8,0.38274]
[1729128793989,2.69,2612.9,2612.8,0.38274]
[1729128794191,2.69,2612.9,2612.7,0.38275]
[1729128794586,3.07273,2612.9,2612.7,0.38275]
[1729128794788,3.49353,2612.9,2612.7,0.38275]
[1729128795793,3.1108,2612.9,2612.3,4.71220335]
[1729128795989,2.69,2612.4,2612.3,3.59061]
[1729128796495,0.38286,2612.0,2611.8,1.88728335]
[1729128796797,0.66115,2612.0,2611.6,3.2078]
[1729128797099,0.66115,2612.0,2611.9,0.38288]
[1729128797595,1.044,2612.1,2612.0,0.38286]
[1729128797788,1.044,2612.1,2612.0,1.60236]
[1729128798194,3.2078,2612.3,2612.0,1.2195]
[1729128798394,1.044,2612.2,2612.1,0.38284]
[1729128798586,3.2078,2612.3,2612.2,0.38283]
[1729128798788,3.07277,2612.7,2612.5,0.38278]
[1729128798789,2.69,2612.7,2612.5,0.38278]
[1729128799103,3.2078,2612.9,2612.3,0.95705]
[1729128799104,5.8978,2612.9,2612.3,0.95705]
[1729128799293,5.8978,2612.9,2612.7,0.38275]
[1729128799294,6.9418,2612.9,2612.7,0.38275]
[1729128799496,6.9418,2612.9,2612.3,0.95705]
[1729128799697,6.9418,2612.9,2612.8,0.38275]
[1729128799993,6.9418,2612.9,2612.4,0.95702]
[1729128799994,2.69,2613.1,2612.5,3.2078]
[1729128800195,2.69,2613.1,2613.0,0.3827]
[1729128801205,2.69,2613.1,2612.9,0.38273]
[1729128801700,3.07271,2613.1,2612.9,0.38273]
[1729128801900,3.0727,2613.1,2612.9,0.38272]
[1729128802404,3.07271,2613.1,2612.9,0.38272]
[1729128802599,2.69,2613.1,2613.0,0.38272]
[1729128803497,2.69,2613.1,2612.6,0.8147]
[1729128803498,3.07271,2613.1,2612.9,0.38272]
[1729128804006,3.07271,2613.1,2613.0,0.38272]
[1729128804298,3.07271,2613.1,2612.9,0.38272]
[1729128804501,3.07271,2613.1,2612.7,0.38276]
[1729128804700,3.07271,2613.1,2613.0,0.38272]
[1729128805103,2.69,2613.1,2613.0,0.38272]
[1729128805405,6.9418,2613.3,2613.2,0.38269]
[1729128805606,3.734,2613.3,2613.2,0.38269]
[1729128805992,3.734,2613.3,2613.1,0.3827]
[1729128806295,3.734,2613.3,2612.9,0.4161]
[1729128806296,3.07269,2613.2,2613.0,0.38271]
[1729128806905,2.69,2613.2,2613.1,0.3827]
[1729128807800,2.69,2613.4,2612.9,0.4161]
[1729128808005,2.69,2613.4,2613.3,0.38267]
[1729128808400,3.2078,2613.6,2613.1,3.2078]
[1729128808603,3.2078,2613.6,2613.5,0.38264]
[1729128809202,6.28044,2613.6,2613.4,0.38265]
[1729128809502,0.38265,2613.5,2613.3,0.78877]
[1729128809702,3.07266,2613.4,2613.3,0.4061]
[1729128810000,2.69,2613.4,2613.3,0.78877]
[1729128810203,3.07266,2613.4,2613.3,0.78877]
[1729128810599,3.07266,2613.4,2613.3,0.4061]
[1729128810795,0.38267,2613.3,2613.2,0.77658]
[1729128810998,2.69,2613.4,2613.2,0.3939]
[1729128811194,3.07267,2613.4,2613.3,0.38267]
[1729128811900,3.07267,2613.4,2613.2,0.3939]
[1729128811901,0.38267,2613.3,2613.2,0.3939]
[1729128812593,0.3827,2613.1,2613.0,0.4061]
[1729128812806,3.0727,2613.1,2613.0,0.4061]
[1729128813193,3.0727,2613.1,2612.7,0.801]
[1729128813194,6.5172,2613.1,2612.7,1.18375]
[1729128813398,2.69,2612.8,2612.7,1.18375]
[1729128816106,3.07275,2612.8,2612.7,1.18375]
[1729128816602,2.69,2612.8,2612.7,1.18375]
[1729128816804,3.07272,2613.0,2612.9,0.38273]
[1729128817011,2.69,2613.0,2612.9,0.38273]
[1729128817307,3.59047,2613.3,2613.2,0.38269]
[1729128817499,3.2078,2613.3,2613.2,0.38269]
[1729128817696,3.59047,2613.3,2613.2,0.38269]
[1729128819997,0.38267,2613.3,2613.2,0.38269]
[1729128820707,0.3827,2613.2,2613.1,0.38269]
[1729128821104,3.8264,2613.2,2612.7,0.4031]
[1729128821300,0.38274,2612.9,2612.8,0.77654]
[1729128821512,0.38274,2612.9,2612.8,0.3938]
[1729128821808,0.38274,2612.9,2612.8,0.77655]
[1729128822207,3.07273,2613.0,2612.9,0.38273]
[1729128825816,0.38273,2612.9,2612.8,0.77653]
[1729128826817,2.69,2613.0,2612.8,0.3938]
[1729128827004,3.07272,2613.0,2612.9,0.38273]
[1729128831009,0.4059,2613.1,2612.8,0.3938]
[1729128831010,0.38271,2613.1,2612.8,0.3938]
[1729128831313,0.38271,2613.1,2613.0,0.38272]
[1729128831515,2.69,2613.2,2612.9,0.3907]
[1729128831711,0.38271,2613.1,2613.0,0.3827]
[1729128831917,0.38272,2613.0,2612.9,0.38273]
[1729128832116,3.07272,2613.0,2612.9,0.38273]
[1729128833914,0.4271,2613.1,2612.8,0.3938]
[1729128833915,0.80981,2613.1,2613.0,0.38272]
[1729128834122,0.38272,2613.0,2612.9,0.38272]
[1729128835022,0.38272,2613.0,2612.9,0.38273]
[1729128835727,0.38272,2613.1,2613.0,0.38271]
[1729128837021,3.0727,2613.2,2613.1,0.3827]
[1729128837321,0.38272,2613.1,2613.0,0.38271]
[1729128838220,0.3928,2613.3,2613.2,0.38268]
[1729128838221,1.55469,2613.3,2613.2,0.38268]
[1729128838521,1.55469,2613.3,2612.8,0.3938]
[1729128838522,1.172,2613.3,2612.8,1.89820335]
[1729128838721,0.38273,2612.9,2612.8,0.77654]
[1729128839119,0.38273,2612.9,2612.8,0.3938]
[1729128839323,0.38277,2612.6,2612.5,1.50440335]
[1729128839616,0.38277,2612.6,2612.3,0.4012]
[1729128839617,5.8978,2612.6,2612.3,0.4012]
[1729128839821,3.2078,2612.6,2612.3,0.4012]
[1729128840012,2.69,2612.6,2612.5,0.38279]
[1729128840212,1.172,2612.7,2612.6,0.38277]
[1729128840617,2.69,2612.8,2612.6,0.38277]
[1729128840618,3.07275,2612.8,2612.6,0.38277]
[1729128840928,3.07276,2612.8,2612.6,0.38277]
[1729128841116,3.07276,2612.8,2612.7,0.78396]
[1729128841315,45.1798,2612.9,2612.7,0.78396]
[1729128841316,41.972,2612.9,2612.8,0.38275]
[1729128841523,1.172,2612.9,2612.8,0.4181]
[1729128841723,1.55473,2612.9,2612.8,0.4181]
[1729128842118,1.172,2612.9,2612.8,0.4181]
[1729128842318,0.38273,2612.9,2612.8,0.4181]
[1729128842521,4.7625,2613.2,2612.8,1.68110543]
[1729128842823,0.38269,2613.2,2613.0,0.38271]
[1729128843024,0.38268,2613.3,2613.1,0.38269]
[1729128843226,2.37277295,2613.3,2613.2,0.3872]
[1729128843423,0.38268,2613.3,2613.2,0.3872]
[1729128843830,6.66749295,2613.4,2613.2,0.3872]
[1729128843831,3.57189295,2613.4,2613.2,0.3872]
[1729128844026,1.5818,2613.4,2613.3,0.38267]
[1729128844321,1.5818,2613.4,2613.2,0.76988]
[1729128844322,3.54476295,2613.4,2613.2,0.76988]
[1729128844731,3.16209295,2613.4,2613.2,0.3872]
[1729128844918,3.16209295,2613.4,2613.3,0.38267]
[1729128845118,1.99009295,2613.5,2613.3,0.4283]
[1729128845323,1.99009295,2613.5,2613.4,0.38266]
[1729128845719,2.37273295,2613.5,2613.4,0.38266]
[1729128845920,1.99009295,2613.5,2613.4,0.38266]
[1729128846120,1.99009295,2613.5,2613.3,1.23976]
[1729128846121,2.37274295,2613.5,2613.3,1.23976]
[1729128846322,2.37274295,2613.5,2613.4,0.38266]
[1729128847329,2.37272295,2613.6,2613.5,0.38264]
[1729128847525,1.99424083,2613.6,2613.5,0.38264]
[1729128848527,2.37687083,2613.6,2613.4,0.38264]
[1729128848727,1.99424083,2613.6,2613.5,0.38264]
[1729128849226,5.06684083,2613.8,2613.3,0.8571]
[1729128849416,0.38262,2613.7,2613.6,0.38262]
[1729128849619,4.68424083,2613.8,2613.6,0.38262]
[1729128849932,0.38262,2613.7,2613.5,0.38263]
[1729128850120,4.68424083,2613.8,2613.3,0.8571]
[1729128850428,4.68424083,2613.8,2613.6,0.38261]
[1729128850625,4.68424083,2613.8,2613.3,0.8571]
[1729128850828,0.38264,2613.6,2613.3,0.8571]
[1729128851029,0.38264,2613.6,2613.4,0.38266]
[1729128852823,2.69,2613.8,2613.4,0.38266]
[1729128853024,0.38264,2613.5,2613.4,0.38266]
[1729128853424,0.38263,2613.6,2613.5,0.38264]
[1729128853729,0.38262,2613.7,2613.6,0.38262]
[1729128853916,0.38263,2613.6,2613.5,0.38263]
[1729128854319,0.38261,2613.7,2613.6,0.38262]
[1729128854518,0.38261,2613.7,2613.3,0.8571]
[1729128854519,3.2078,2613.9,2613.3,6.52597335]
[1729128854722,3.2078,2613.9,2613.8,0.3826]
[1729128855123,3.59038,2613.9,2613.7,0.3826]
[1729128855325,3.59038,2613.9,2613.4,0.95663]
[1729128855326,3.59038,2613.9,2613.4,2.46103335]
[1729128855623,3.2078,2613.9,2613.8,0.3826]
[1729128856223,3.59038,2613.9,2613.8,0.3826]
[1729128856433,3.2078,2613.9,2613.8,0.3826]
[1729128856636,3.59038,2613.9,2613.8,0.3826]
[1729128856941,3.2078,2613.9,2613.8,0.3826]
[1729128857729,5.20204083,2613.9,2613.8,0.3826]
[1729128858532,5.58462083,2613.9,2613.8,0.3826]
[1729128859237,3.59038,2613.9,2613.8,0.3826]
[1729128859435,3.2078,2613.9,2613.8,0.3826]
[1729128859741,0.38258,2613.9,2613.8,0.3826]
[1729128862140,4.68424083,2614.0,2613.4,4.16443]
[1729128862340,0.3826,2613.9,2613.8,0.38259]
[1729128862544,0.38261,2613.8,2613.7,0.3826]
[1729128863132,1.99424083,2613.9,2613.4,4.16444]
[1729128863337,0.38259,2613.9,2613.8,0.3826]
[1729128863538,2.37682083,2614.0,2613.9,0.38258]
[1729128863837,0.38259,2613.9,2613.8,0.38258]
[1729128864037,2.37682083,2614.0,2613.9,0.38258]
[1729128864440,0.38258,2614.0,2613.9,0.38258]
[1729128864637,1.99424083,2614.1,2614.0,0.38257]
[1729128864842,2.39764083,2614.2,2614.0,1.20067]
[1729128865039,0.38255,2614.1,2614.0,1.20067]
[1729128865739,0.38255,2614.1,2614.0,0.8181]
[1729128865938,0.38261,2613.8,2613.6,1.0012144]
[1729128866142,0.38259,2613.9,2613.8,0.38258]
[1729128866741,2.69,2614.1,2613.7,0.8181]
[1729128867046,0.3826,2613.8,2613.7,1.2007]
[1729128868749,2.69,2614.1,2613.7,0.8181]
[1729128868945,0.3826,2613.8,2613.7,1.2007]
[1729128869446,0.38259,2613.9,2613.8,0.38258]
[1729128872448,0.38258,2614.0,2613.9,0.38257]
[1729128872852,0.3826,2613.9,2613.8,0.38259]
[1729128874240,1.99424083,2614.0,2613.5,0.4241]
[1729128874441,0.38263,2613.6,2613.5,0.80673]
[1729128877053,2.39764083,2613.8,2613.5,0.4241]
[1729128877246,2.37685083,2613.8,2613.7,0.38261]
[1729128878047,2.37230423,2613.8,2613.7,0.38261]
[1729128880654,1.98969423,2613.8,2613.5,0.4241]
[1729128880852,0.38262,2613.7,2613.6,0.38261]
[1729128882850,0.38263,2613.6,2613.5,0.80673]
[1729128883044,0.38263,2613.6,2613.5,0.4241]
[1729128883249,0.38267,2613.3,2613.2,1.3838844]
[1729128883455,0.38267,2613.3,2613.2,1.7906844]
[1729128883651,0.38267,2613.3,2613.2,0.78947]
[1729128883847,1.62267,2613.3,2613.2,0.78947]
[1729128885553,1.62267,2613.3,2613.2,1.7906844]
[1729128885859,0.38267,2613.3,2613.2,1.7906844]
[1729128886058,0.8278,2613.5,2613.2,1.4080144]
[1729128886356,0.38267,2613.4,2613.3,0.38266]
[1729128888056,0.38267,2613.4,2613.2,1.4080144]
[1729128888057,0.4277,2613.5,2613.2,1.0012144]
[1729128888257,0.38267,2613.4,2613.3,1.3838744]
[1729128888553,0.38267,2613.4,2613.3,1.3838844]
[1729128889862,0.38266,2613.5,2613.4,0.38266]
[1729128890053,0.4004,2613.7,2613.4,1.0012144]
[1729128890251,0.38264,2613.6,2613.5,0.80253]
[1729128891056,0.38263,2613.7,2613.6,0.38262]
[1729128891260,0.38263,2613.7,2613.6,0.79662]
[1729128891563,0.38263,2613.7,2613.6,1.19832]
[1729128892158,0.38263,2613.7,2613.6,0.8157]
[1729128892358,0.19355112,2613.8,2613.7,0.38261]
[1729128892359,0.38261,2613.8,2613.7,0.38261]
[1729128892554,0.38261,2613.8,2613.7,1.3838244]
[1729128892757,0.38261,2613.8,2613.7,0.38261]
[1729128893153,0.4238,2614.0,2613.6,1.8169144]
[1729128893458,0.38261,2613.7,2613.6,2.1995344]
[1729128894663,0.38261,2613.7,2613.6,1.8169144]
[1729128895158,0.38261,2613.7,2613.6,3.46403854]
[1729128895458,0.38261,2613.7,2613.6,2.46282414]
[1729128896061,2.8584599,2613.7,2613.6,1.19833]
[1729128896665,2.8584599,2613.7,2613.6,0.8157]
[1729128896966,2.8584599,2613.7,2613.6,1.19833]
[1729128897650,2.8584599,2613.7,2613.6,0.8157]
[1729128897854,2.8584599,2613.7,2613.6,1.19833]
[1729128898561,2.8584599,2613.7,2613.6,0.8157]
[1729128898959,0.38261,2613.7,2613.6,0.8157]
[1729128899152,2.87482648,2613.7,2613.6,0.8157]
[1729128899759,0.38261,2613.7,2613.6,0.4017]
[1729128900463,0.38261,2613.7,2613.3,0.3937]